{"text_format":"1","workbook":"xlsx","n_sheets":3,"sheets":["Hoja1","Hoja2","Hoja3"],"not_rendered":{"charts":1,"images":1,"macros":0,"external_links":0,"defined_names":3,"comments":0,"pivot_tables":0},"unopened":[],"bounds":{"document_bytes":16777216,"sheet_cells":100000,"rows_first":2000,"rows_last":500,"rows_between":2000,"halvings":0,"cell_chars":16384,"cell_head_chars":4096},"cells_cut":0,"cells_raw":0,"read":"whole","date_system":"1900"}

{"sheet":"Hoja1","index":0,"n_rows":49,"n_cols":7,"rows_kept":49,"cut":false,"hidden":false,"merged":[[6,3,6,8],[7,3,7,8]]}
[]
[]
[]
[]
[]
[]
[null,null,null,"Energía cinética."]
[null,null,null,"Obten la energía cinética con los parámetros dados."]
[null,null,null,"Masa (kg)",5]
[null,null,null,"Velocidad (m/s)",1]
[null,null,null,"Energía cinética (J)",{"$f":"((1/2)*(m))*(v^2)","v":2.5}]
[]
[]
[]
[]
[]
[]
[]
[]
[]
[null,"Trabajo realizado con el apoyo del Programa  UNAM-DGAPA-PAPIME PE110517"]
[]
[]
[null,null,null,null,"Masa","Velocidad","Energía"]
[null,null,null,null,5,1,{"$f":"((1/2)*(E25))*(F25^2)","v":2.5}]
[null,null,null,null,10,2,{"$f":"((1/2)*(E26))*(F26^2)","v":20}]
[null,null,null,null,15,3,67.5]
[null,null,null,null,20,4,160]
[null,null,null,null,25,5,312.5]
[null,null,null,null,30,6,540]
[null,null,null,null,35,7,857.5]
[null,null,null,null,40,8,1280]
[null,null,null,null,45,9,1822.5]
[null,null,null,null,50,10,2500]
[null,null,null,null,55,11,3327.5]
[null,null,null,null,60,12,4320]
[null,null,null,null,65,13,5492.5]
[null,null,null,null,70,14,6860]
[null,null,null,null,75,15,8437.5]
[null,null,null,null,80,16,10240]
[null,null,null,null,85,17,12282.5]
[null,null,null,null,90,18,14580]
[null,null,null,null,95,19,17147.5]
[null,null,null,null,100,20,20000]
[null,null,null,null,null,21]
[null,null,null,null,null,22]
[null,null,null,null,null,23]
[null,null,null,null,null,24]
[null,null,null,null,null,25]

{"sheet":"Hoja2","index":1,"n_rows":0,"n_cols":0,"rows_kept":0,"cut":false,"hidden":false,"merged":[]}

{"sheet":"Hoja3","index":2,"n_rows":0,"n_cols":0,"rows_kept":0,"cut":false,"hidden":false,"merged":[]}